[Event "Titled Tuesday Blitz August 16 Early 2022"]
[White "Kiseljova, Marya"]
[Black "Shukhman, Anna"]
[WhiteFideId "4155009"]
[BlackFideId "54180058"]
[WhiteElo "1697"]
[BlackElo "1726"]
[Result "0-1"]
[Round "06"]
[TimeControl "180+2"]
[Date "2022.08.18"]
[WhiteClock "0:00:00"]
[BlackClock "0:00:00"]

1. d4 {[%clk 0:00:00]}  Nf6 {[%clk 0:00:00]} 2. c4 {[%clk 0:00:00]}  g6 {[%clk 0:00:00]} 3. Nc3 {[%clk 0:00:00]}  d5 {[%clk 0:00:00]} 4. cxd5 {[%clk 0:00:00]}  Nxd5 {[%clk 0:00:00]} 5. Bd2 {[%clk 0:00:00]}  Nb6 {[%clk 0:00:00]} 6. Nf3 {[%clk 0:00:00]}  Nc6 {[%clk 0:00:00]} 7. e3 {[%clk 0:00:00]}  Bg7 {[%clk 0:00:00]} 8. Bb5 {[%clk 0:00:00]}  O-O {[%clk 0:00:00]} 9. O-O {[%clk 0:00:00]}  e5 {[%clk 0:00:00]} 10. Bxc6 {[%clk 0:00:00]}  bxc6 {[%clk 0:00:00]} 11. Nxe5 {[%clk 0:00:00]}  Bxe5 {[%clk 0:00:00]} 12. dxe5 {[%clk 0:00:00]}  Ba6 {[%clk 0:00:00]} 13. Re1 {[%clk 0:00:00]}  Nc4 {[%clk 0:00:00]} 14. Bc1 {[%clk 0:00:00]}  Nxe5 {[%clk 0:00:00]} 15. Qa4 {[%clk 0:00:00]}  Bd3 {[%clk 0:00:00]} 16. f4 {[%clk 0:00:00]}  Ng4 {[%clk 0:00:00]} 17. g3 {[%clk 0:00:00]}  f5 {[%clk 0:00:00]} 18. Qxc6 {[%clk 0:00:00]}  Qe7 {[%clk 0:00:00]} 19. Nd5 {[%clk 0:00:00]}  Qe4 {[%clk 0:00:00]} 20. Bd2 {[%clk 0:00:00]}  Rad8 {[%clk 0:00:00]} 21. Nb4 {[%clk 0:00:00]}  Rd6 {[%clk 0:00:00]} 22. Qxe4 {[%clk 0:00:00]}  Bxe4 {[%clk 0:00:00]} 23. Bc3 {[%clk 0:00:00]}  Rfd8 {[%clk 0:00:00]} 24. a4 {[%clk 0:00:00]}  c5 {[%clk 0:00:00]} 25. Na2 {[%clk 0:00:00]}  Rd3 {[%clk 0:00:00]} 26. Nc1 {[%clk 0:00:00]}  Rxe3 {[%clk 0:00:00]} 27. Rxe3 {[%clk 0:00:00]}  Nxe3 {[%clk 0:00:00]} 28. Ne2 {[%clk 0:00:00]}  Nc2 {[%clk 0:00:00]} 29. Rc1 {[%clk 0:00:00]}  Nb4 {[%clk 0:00:00]} 30. Bxb4 {[%clk 0:00:00]}  cxb4 {[%clk 0:00:00]} 31. Nd4 {[%clk 0:00:00]}  Rxd4 {[%clk 0:00:00]} 32. Rc8+ {[%clk 0:00:00]}  Kf7 {[%clk 0:00:00]} 33. Rc7+ {[%clk 0:00:00]}  Ke6 {[%clk 0:00:00]} 34. Rxa7 {[%clk 0:00:00]}  Rd1+ {[%clk 0:00:00]} 35. Kf2 {[%clk 0:00:00]}  Rd2+ {[%clk 0:00:00]} 36. Ke3 {[%clk 0:00:00]}  Rxb2 {[%clk 0:00:00]} 37. Rxh7 {[%clk 0:00:00]}  Rb3+ {[%clk 0:00:00]} 38. Kd4 {[%clk 0:00:00]}  Rd3+ {[%clk 0:00:00]} 39. Kc5 {[%clk 0:00:00]}  b3 {[%clk 0:00:00]} 40. Rh6 {[%clk 0:00:00]}  Kf6 {[%clk 0:00:00]} 41. Rh8 {[%clk 0:00:00]}  b2 {[%clk 0:00:00]} 42. Rb8 {[%clk 0:00:00]}  Rd2 {[%clk 0:00:00]} 43. Rb6+ {[%clk 0:00:00]}  Kg7 {[%clk 0:00:00]} 44. a5 {[%clk 0:00:00]}  b1=Q {[%clk 0:00:00]} 45. Rxb1 {[%clk 0:00:00]}  Bxb1 {[%clk 0:00:00]} 46. a6 {[%clk 0:00:00]}  Be4 {[%clk 0:00:00]} 47. Kb6 {[%clk 0:00:00]}  Rxh2 {[%clk 0:00:00]} 48. a7 {[%clk 0:00:00]}  Rg2 {[%clk 0:00:00]} 49. Kc7 {[%clk 0:00:00]}  Rxg3 {[%clk 0:00:00]} 50. Kb8 {[%clk 0:00:00]}  Rb3+ {[%clk 0:00:00]} 51. Kc7 {[%clk 0:00:00]}  Ra3 {[%clk 0:00:00]} 52. Kb8 {[%clk 0:00:00]}  g5 {[%clk 0:00:00]} 53. Kc7 {[%clk 0:00:00]}  Rxa7+ {[%clk 0:00:00]} 54. Kb8 {[%clk 0:00:00]}  Ra1 {[%clk 0:00:00]} 0-1


[Site "https://www.chess.com"]

[Event "Titled Tuesday Blitz August 16 Early 2022"]
[White "Kononenko, Dmitry"]
[Black "Samadov, Read"]
[WhiteFideId "14113538"]
[BlackFideId "13417444"]
[WhiteElo "2129"]
[BlackElo "2084"]
[Result "0-1"]
[Round "06"]
[TimeControl "180+1"]
[Date "2022.08.16"]
[WhiteClock "0:00:16"]
[BlackClock "0:00:29"]

1. d4 {[%clk 0:03:00]}  Nf6 {[%clk 0:02:59]} 2. c4 {[%clk 0:03:01]}  e6 {[%clk 0:02:59]} 3. g3 {[%clk 0:03:01]}  d5 {[%clk 0:02:59]} 4. Nf3 {[%clk 0:03:01]}  Bb4+ {[%clk 0:03:00]} 5. Bd2 {[%clk 0:03:01]}  Be7 {[%clk 0:03:00]} 6. Bg2 {[%clk 0:03:02]}  O-O {[%clk 0:03:01]} 7. O-O {[%clk 0:03:02]}  c6 {[%clk 0:03:02]} 8. Qc2 {[%clk 0:02:58]}  Nbd7 {[%clk 0:03:02]} 9. Rd1 {[%clk 0:02:53]}  Ne4 {[%clk 0:02:59]} 10. Bf4 {[%clk 0:02:49]}  g5 {[%clk 0:02:52]} 11. Bc1 {[%clk 0:02:47]}  f5 {[%clk 0:02:52]} 12. b3 {[%clk 0:02:42]}  Bf6 {[%clk 0:02:48]} 13. Bb2 {[%clk 0:02:42]}  Qe8 {[%clk 0:02:46]} 14. Nbd2 {[%clk 0:02:41]}  Qf7 {[%clk 0:02:35]} 15. Ne5 {[%clk 0:02:40]}  Qg7 {[%clk 0:02:35]} 16. f3 {[%clk 0:02:24]}  Nxd2 {[%clk 0:02:33]} 17. Qxd2 {[%clk 0:02:25]}  Nxe5 {[%clk 0:02:27]} 18. dxe5 {[%clk 0:02:25]}  Be7 {[%clk 0:02:27]} 19. e4 {[%clk 0:02:22]}  dxe4 {[%clk 0:02:24]} 20. fxe4 {[%clk 0:02:22]}  f4 {[%clk 0:02:24]} 21. Rf1 {[%clk 0:02:19]}  Bc5+ {[%clk 0:02:22]} 22. Kh1 {[%clk 0:02:16]}  Be3 {[%clk 0:02:22]} 23. Qd6 {[%clk 0:02:10]}  Bd7 {[%clk 0:02:20]} 24. Rad1 {[%clk 0:02:08]}  Rf7 {[%clk 0:02:17]} 25. gxf4 {[%clk 0:02:01]}  Bxf4 {[%clk 0:02:16]} 26. Rf3 {[%clk 0:01:58]}  Re8 {[%clk 0:02:12]} 27. Rdf1 {[%clk 0:01:48]}  Bc8 {[%clk 0:02:08]} 28. Qd3 {[%clk 0:01:33]}  Rd7 {[%clk 0:02:06]} 29. Qe2 {[%clk 0:01:31]}  Rd2 {[%clk 0:02:05]} 30. Qxd2 {[%clk 0:01:15]}  Bxd2 {[%clk 0:02:05]} 31. Rf6 {[%clk 0:01:15]}  Bf4 {[%clk 0:02:02]} 32. Bf3 {[%clk 0:01:12]}  Rf8 {[%clk 0:01:56]} 33. Bh5 {[%clk 0:01:10]}  Bd7 {[%clk 0:01:42]} 34. h3 {[%clk 0:01:01]}  Be8 {[%clk 0:01:18]} 35. Bg4 {[%clk 0:01:00]}  Rxf6 {[%clk 0:01:11]} 36. exf6 {[%clk 0:00:59]}  Qf7 {[%clk 0:01:11]} 37. Rd1 {[%clk 0:00:50]}  h5 {[%clk 0:01:11]} 38. Bf3 {[%clk 0:00:50]}  e5 {[%clk 0:01:09]} 39. Rd8 {[%clk 0:00:47]}  Kh7 {[%clk 0:01:05]} 40. Ba3 {[%clk 0:00:43]}  Qe6 {[%clk 0:00:51]} 41. Kg2 {[%clk 0:00:40]}  g4 {[%clk 0:00:50]} 42. hxg4 {[%clk 0:00:37]}  hxg4 {[%clk 0:00:51]} 43. Be2 {[%clk 0:00:37]}  Bf7 {[%clk 0:00:49]} 44. Be7 {[%clk 0:00:35]}  Bg5 {[%clk 0:00:45]} 45. Rd6 {[%clk 0:00:31]}  Qc8 {[%clk 0:00:45]} 46. Rd8 {[%clk 0:00:29]}  Qc7 {[%clk 0:00:45]} 47. Bxg4 {[%clk 0:00:29]}  Qa5 {[%clk 0:00:31]} 48. a3 {[%clk 0:00:17]}  Qe1 {[%clk 0:00:28]} 49. Bf5+ {[%clk 0:00:16]}  Bg6 {[%clk 0:00:29]} 50. Rd7 {[%clk 0:00:16]}  Bxf5 {[%clk 0:00:27]} 51. exf5 {[%clk 0:00:16]}  Qe4+ {[%clk 0:00:28]} 52. Kf1 {[%clk 0:00:16]}  Qxf5+ {[%clk 0:00:28]} 53. Ke2 {[%clk 0:00:16]}  Qxd7 {[%clk 0:00:29]} 0-1


[Site "https://www.chess.com"]

[Event "Titled Tuesday Blitz August 16 Early 2022"]
[White "Kosteniuk, Alexandra"]
[Black "Mikhalsky, Vladimir"]
[WhiteFideId "4128125"]
[BlackFideId "14144352"]
[WhiteElo "2521"]
[BlackElo "2269"]
[Result "1-0"]
[Round "06"]
[TimeControl "180+2"]
[Date "2022.08.18"]
[WhiteClock "0:00:00"]
[BlackClock "0:00:00"]

1. Nf3 {[%clk 0:00:00]}  c5 {[%clk 0:00:00]} 2. e4 {[%clk 0:00:00]}  Nc6 {[%clk 0:00:00]} 3. Bb5 {[%clk 0:00:00]}  g6 {[%clk 0:00:00]} 4. O-O {[%clk 0:00:00]}  Bg7 {[%clk 0:00:00]} 5. c3 {[%clk 0:00:00]}  a6 {[%clk 0:00:00]} 6. Bxc6 {[%clk 0:00:00]}  dxc6 {[%clk 0:00:00]} 7. d4 {[%clk 0:00:00]}  cxd4 {[%clk 0:00:00]} 8. cxd4 {[%clk 0:00:00]}  Nf6 {[%clk 0:00:00]} 9. Nc3 {[%clk 0:00:00]}  O-O {[%clk 0:00:00]} 10. h3 {[%clk 0:00:00]}  Qa5 {[%clk 0:00:00]} 11. Be3 {[%clk 0:00:00]}  Rd8 {[%clk 0:00:00]} 12. Qc1 {[%clk 0:00:00]}  Be6 {[%clk 0:00:00]} 13. Rd1 {[%clk 0:00:00]}  Rac8 {[%clk 0:00:00]} 14. Bh6 {[%clk 0:00:00]}  Qb4 {[%clk 0:00:00]} 15. e5 {[%clk 0:00:00]}  Nd5 {[%clk 0:00:00]} 16. Ne4 {[%clk 0:00:00]}  Bf5 {[%clk 0:00:00]} 17. Nc5 {[%clk 0:00:00]}  b6 {[%clk 0:00:00]} 18. Bd2 {[%clk 0:00:00]}  Qb5 {[%clk 0:00:00]} 19. a4 {[%clk 0:00:00]}  Qe2 {[%clk 0:00:00]} 20. Re1 {[%clk 0:00:00]}  Qxe1+ {[%clk 0:00:00]} 21. Qxe1 {[%clk 0:00:00]}  bxc5 {[%clk 0:00:00]} 22. dxc5 {[%clk 0:00:00]}  Rb8 {[%clk 0:00:00]} 23. b4 {[%clk 0:00:00]}  f6 {[%clk 0:00:00]} 24. Nd4 {[%clk 0:00:00]}  Bd7 {[%clk 0:00:00]} 25. b5 {[%clk 0:00:00]}  cxb5 {[%clk 0:00:00]} 26. axb5 {[%clk 0:00:00]}  Bxb5 {[%clk 0:00:00]} 27. Ne6 {[%clk 0:00:00]}  Rdc8 {[%clk 0:00:00]} 28. Nxg7 {[%clk 0:00:00]}  Kxg7 {[%clk 0:00:00]} 29. exf6+ {[%clk 0:00:00]}  exf6 {[%clk 0:00:00]} 30. Rc1 {[%clk 0:00:00]}  Re8 {[%clk 0:00:00]} 31. Be3 {[%clk 0:00:00]}  Nxe3 {[%clk 0:00:00]} 32. fxe3 {[%clk 0:00:00]}  Rbc8 {[%clk 0:00:00]} 33. Qc3 {[%clk 0:00:00]}  Re6 {[%clk 0:00:00]} 34. Qd4 {[%clk 0:00:00]}  Rce8 {[%clk 0:00:00]} 35. c6 {[%clk 0:00:00]}  Rxc6 {[%clk 0:00:00]} 36. Qd7+ {[%clk 0:00:00]}  Kh6 {[%clk 0:00:00]} 37. Rxc6 {[%clk 0:00:00]}  Rxe3 {[%clk 0:00:00]} 38. Qd2 {[%clk 0:00:00]}  Bxc6 {[%clk 0:00:00]} 39. Qxe3+ {[%clk 0:00:00]}  Kg7 {[%clk 0:00:00]} 40. Qe7+ {[%clk 0:00:00]}  Kh6 {[%clk 0:00:00]} 41. Qxf6 {[%clk 0:00:00]}  Bb5 {[%clk 0:00:00]} 42. Kf2 {[%clk 0:00:00]} 1-0


[Site "https://www.chess.com"]

[Event "Titled Tuesday Blitz August 16 Early 2022"]
[White "Krsnik Cohar, Ivan Vihor"]
[Black "Mendez Fortes, Eduardo Jesus"]
[WhiteFideId "14520044"]
[BlackFideId "3502376"]
[WhiteElo "2296"]
[BlackElo "2250"]
[Result "0-1"]
[Round "06"]
[TimeControl "180+2"]
[Date "2022.08.18"]
[WhiteClock "0:00:00"]
[BlackClock "0:00:00"]

1. e4 {[%clk 0:00:00]}  e5 {[%clk 0:00:00]} 2. Nf3 {[%clk 0:00:00]}  Nc6 {[%clk 0:00:00]} 3. d4 {[%clk 0:00:00]}  exd4 {[%clk 0:00:00]} 4. Bc4 {[%clk 0:00:00]}  Nf6 {[%clk 0:00:00]} 5. O-O {[%clk 0:00:00]}  Nxe4 {[%clk 0:00:00]} 6. Re1 {[%clk 0:00:00]}  d5 {[%clk 0:00:00]} 7. Bxd5 {[%clk 0:00:00]}  Qxd5 {[%clk 0:00:00]} 8. Nc3 {[%clk 0:00:00]}  Qd7 {[%clk 0:00:00]} 9. Nxe4 {[%clk 0:00:00]}  Be7 {[%clk 0:00:00]} 10. Nc5 {[%clk 0:00:00]}  Qd5 {[%clk 0:00:00]} 11. Nb3 {[%clk 0:00:00]}  O-O {[%clk 0:00:00]} 12. Nbxd4 {[%clk 0:00:00]}  Bf6 {[%clk 0:00:00]} 13. Nxc6 {[%clk 0:00:00]}  Qxc6 {[%clk 0:00:00]} 14. Bg5 {[%clk 0:00:00]}  Bxb2 {[%clk 0:00:00]} 15. Be7 {[%clk 0:00:00]}  Re8 {[%clk 0:00:00]} 16. Rb1 {[%clk 0:00:00]}  Bc3 {[%clk 0:00:00]} 17. Re3 {[%clk 0:00:00]}  Be6 {[%clk 0:00:00]} 18. Bb4 {[%clk 0:00:00]}  Bxb4 {[%clk 0:00:00]} 19. Rxb4 {[%clk 0:00:00]}  Bxa2 {[%clk 0:00:00]} 20. Ne5 {[%clk 0:00:00]}  Qc5 {[%clk 0:00:00]} 21. Nd3 {[%clk 0:00:00]}  Qc3 {[%clk 0:00:00]} 22. Rg3 {[%clk 0:00:00]}  Rad8 {[%clk 0:00:00]} 23. Re3 {[%clk 0:00:00]}  Rxe3 {[%clk 0:00:00]} 24. fxe3 {[%clk 0:00:00]}  Qxb4 {[%clk 0:00:00]} 0-1


[Site "https://www.chess.com"]

[Event "Titled Tuesday Blitz August 16 Early 2022"]
[White "Kuchava, Ana"]
[Black "Novikova, Galina"]
[WhiteFideId "13605348"]
[BlackFideId "4157095"]
[WhiteElo "1955"]
[BlackElo "1923"]
[Result "1-0"]
[Round "06"]
[TimeControl "180+2"]
[Date "2022.08.18"]
[WhiteClock "0:00:00"]
[BlackClock "0:00:00"]

1. d4 {[%clk 0:00:00]}  e6 {[%clk 0:00:00]} 2. Nf3 {[%clk 0:00:00]}  d5 {[%clk 0:00:00]} 3. c4 {[%clk 0:00:00]}  c6 {[%clk 0:00:00]} 4. e3 {[%clk 0:00:00]}  f5 {[%clk 0:00:00]} 5. Nc3 {[%clk 0:00:00]}  Nf6 {[%clk 0:00:00]} 6. Bd3 {[%clk 0:00:00]}  Bd6 {[%clk 0:00:00]} 7. Ne5 {[%clk 0:00:00]}  Nbd7 {[%clk 0:00:00]} 8. f4 {[%clk 0:00:00]}  O-O {[%clk 0:00:00]} 9. O-O {[%clk 0:00:00]}  Ne4 {[%clk 0:00:00]} 10. Nxe4 {[%clk 0:00:00]}  fxe4 {[%clk 0:00:00]} 11. Be2 {[%clk 0:00:00]}  Nf6 {[%clk 0:00:00]} 12. c5 {[%clk 0:00:00]}  Bc7 {[%clk 0:00:00]} 13. Bd2 {[%clk 0:00:00]}  Bd7 {[%clk 0:00:00]} 14. Be1 {[%clk 0:00:00]}  Be8 {[%clk 0:00:00]} 15. Bh4 {[%clk 0:00:00]}  Qc8 {[%clk 0:00:00]} 16. b4 {[%clk 0:00:00]}  a6 {[%clk 0:00:00]} 17. a4 {[%clk 0:00:00]}  h6 {[%clk 0:00:00]} 18. Qb3 {[%clk 0:00:00]}  Kh7 {[%clk 0:00:00]} 19. b5 {[%clk 0:00:00]}  axb5 {[%clk 0:00:00]} 20. axb5 {[%clk 0:00:00]}  Rxa1 {[%clk 0:00:00]} 21. Rxa1 {[%clk 0:00:00]}  Bh5 {[%clk 0:00:00]} 22. Bxh5 {[%clk 0:00:00]}  Nxh5 {[%clk 0:00:00]} 23. b6 {[%clk 0:00:00]}  Bxe5 {[%clk 0:00:00]} 24. dxe5 {[%clk 0:00:00]}  Qd7 {[%clk 0:00:00]} 25. Ra7 {[%clk 0:00:00]}  d4 {[%clk 0:00:00]} 26. exd4 {[%clk 0:00:00]}  Qxd4+ {[%clk 0:00:00]} 27. Bf2 {[%clk 0:00:00]}  Qd7 {[%clk 0:00:00]} 28. g3 {[%clk 0:00:00]}  g5 {[%clk 0:00:00]} 29. Qe3 {[%clk 0:00:00]}  gxf4 {[%clk 0:00:00]} 30. Qxe4+ {[%clk 0:00:00]}  Kh8 {[%clk 0:00:00]} 31. g4 {[%clk 0:00:00]}  Qd1+ {[%clk 0:00:00]} 32. Be1 {[%clk 0:00:00]}  Qxg4+ {[%clk 0:00:00]} 33. Kf1 {[%clk 0:00:00]}  Qh3+ {[%clk 0:00:00]} 34. Qg2 {[%clk 0:00:00]}  Qd3+ {[%clk 0:00:00]} 35. Qe2 {[%clk 0:00:00]}  Qxe2+ {[%clk 0:00:00]} 36. Kxe2 {[%clk 0:00:00]}  Rf7 {[%clk 0:00:00]} 37. Kf3 {[%clk 0:00:00]}  Kg7 {[%clk 0:00:00]} 38. Bh4 {[%clk 0:00:00]}  Kg6 {[%clk 0:00:00]} 39. Bd8 {[%clk 0:00:00]}  Kf5 {[%clk 0:00:00]} 40. Bc7 {[%clk 0:00:00]}  Rd7 {[%clk 0:00:00]} 41. Rxb7 {[%clk 0:00:00]}  Rd3+ {[%clk 0:00:00]} 42. Ke2 {[%clk 0:00:00]}  Re3+ {[%clk 0:00:00]} 43. Kf2 {[%clk 0:00:00]}  Rc3 {[%clk 0:00:00]} 44. Bd6 {[%clk 0:00:00]}  Rc2+ {[%clk 0:00:00]} 45. Kf3 {[%clk 0:00:00]}  Rc3+ {[%clk 0:00:00]} 46. Kf2 {[%clk 0:00:00]}  Ke4 {[%clk 0:00:00]} 47. Rf7 {[%clk 0:00:00]}  Rc2+ {[%clk 0:00:00]} 48. Ke1 {[%clk 0:00:00]}  Ke3 {[%clk 0:00:00]} 49. Kd1 {[%clk 0:00:00]}  Rb2 {[%clk 0:00:00]} 50. b7 {[%clk 0:00:00]}  Rxh2 {[%clk 0:00:00]} 51. b8=Q {[%clk 0:00:00]}  Ng3 {[%clk 0:00:00]} 52. Qb3+ {[%clk 0:00:00]}  Ke4 {[%clk 0:00:00]} 53. Qc4+ {[%clk 0:00:00]}  Kf3 {[%clk 0:00:00]} 54. Qxf4+ {[%clk 0:00:00]}  Kg2 {[%clk 0:00:00]} 55. Qf2+ {[%clk 0:00:00]}  Kh3 {[%clk 0:00:00]} 56. Qf3 {[%clk 0:00:00]}  Rh1+ {[%clk 0:00:00]} 57. Kc2 {[%clk 0:00:00]}  Rh2+ {[%clk 0:00:00]} 58. Kb3 {[%clk 0:00:00]}  h5 {[%clk 0:00:00]} 59. Rg7 {[%clk 0:00:00]}  h4 {[%clk 0:00:00]} 60. Be7 {[%clk 0:00:00]}  Rh1 {[%clk 0:00:00]} 61. Qg4+ {[%clk 0:00:00]}  Kh2 {[%clk 0:00:00]} 62. Qxh4+ {[%clk 0:00:00]} 1-0


[Site "https://www.chess.com"]

[Event "Titled Tuesday Blitz August 16 Early 2022"]
[White "Lagno, Kateryna"]
[Black "Puranik, Abhimanyu"]
[WhiteFideId "14109336"]
[BlackFideId "5061245"]
[WhiteElo "2522"]
[BlackElo "2520"]
[Result "1-0"]
[Round "06"]
[TimeControl "180+1"]
[Date "2022.08.16"]
[WhiteClock "0:00:13"]
[BlackClock "0:00:02"]

1. e4 {[%clk 0:03:00]}  e6 {[%clk 0:02:59]} 2. d4 {[%clk 0:03:00]}  d5 {[%clk 0:02:58]} 3. Nd2 {[%clk 0:02:59]}  c5 {[%clk 0:02:57]} 4. exd5 {[%clk 0:02:59]}  Qxd5 {[%clk 0:02:58]} 5. Ngf3 {[%clk 0:02:58]}  cxd4 {[%clk 0:02:55]} 6. Bc4 {[%clk 0:02:58]}  Qd7 {[%clk 0:02:55]} 7. O-O {[%clk 0:02:56]}  a6 {[%clk 0:02:53]} 8. Nb3 {[%clk 0:02:54]}  Nc6 {[%clk 0:02:52]} 9. Nbxd4 {[%clk 0:02:52]}  Nxd4 {[%clk 0:02:52]} 10. Qxd4 {[%clk 0:02:53]}  Qxd4 {[%clk 0:02:51]} 11. Nxd4 {[%clk 0:02:54]}  Bd7 {[%clk 0:02:50]} 12. Be2 {[%clk 0:02:54]}  Nf6 {[%clk 0:02:47]} 13. Bf4 {[%clk 0:02:32]}  Be7 {[%clk 0:02:33]} 14. Rfd1 {[%clk 0:02:18]}  O-O-O {[%clk 0:02:23]} 15. Nf3 {[%clk 0:02:10]}  Nd5 {[%clk 0:02:20]} 16. Bg3 {[%clk 0:02:09]}  f6 {[%clk 0:02:14]} 17. Rd3 {[%clk 0:01:55]}  Bb5 {[%clk 0:02:10]} 18. c4 {[%clk 0:01:51]}  Bxc4 {[%clk 0:02:01]} 19. Rc1 {[%clk 0:01:51]}  b5 {[%clk 0:02:01]} 20. b3 {[%clk 0:01:47]}  Ba3 {[%clk 0:02:00]} 21. bxc4 {[%clk 0:01:41]}  Bxc1 {[%clk 0:02:00]} 22. cxd5 {[%clk 0:01:42]}  Kb7 {[%clk 0:01:51]} 23. dxe6 {[%clk 0:01:31]}  Rxd3 {[%clk 0:01:45]} 24. Bxd3 {[%clk 0:01:32]}  g6 {[%clk 0:01:40]} 25. Be4+ {[%clk 0:01:18]}  Kb6 {[%clk 0:01:40]} 26. Bd6 {[%clk 0:01:12]}  Rc8 {[%clk 0:00:46]} 27. g3 {[%clk 0:01:03]}  Bb2 {[%clk 0:00:38]} 28. e7 {[%clk 0:01:01]}  f5 {[%clk 0:00:38]} 29. Bd5 {[%clk 0:01:01]}  Bf6 {[%clk 0:00:36]} 30. Bf7 {[%clk 0:00:58]}  Bxe7 {[%clk 0:00:34]} 31. Bxe7 {[%clk 0:00:59]}  Rc1+ {[%clk 0:00:34]} 32. Kg2 {[%clk 0:00:58]}  a5 {[%clk 0:00:34]} 33. Nd4 {[%clk 0:00:52]}  Rd1 {[%clk 0:00:28]} 34. Bf6 {[%clk 0:00:34]}  b4 {[%clk 0:00:26]} 35. Kf3 {[%clk 0:00:34]}  a4 {[%clk 0:00:20]} 36. Ke2 {[%clk 0:00:34]}  Rb1 {[%clk 0:00:17]} 37. Nf3 {[%clk 0:00:25]}  Rc1 {[%clk 0:00:15]} 38. Kd2 {[%clk 0:00:25]}  Rf1 {[%clk 0:00:15]} 39. Bd4+ {[%clk 0:00:23]}  Ka5 {[%clk 0:00:15]} 40. Bc4 {[%clk 0:00:22]}  Rb1 {[%clk 0:00:09]} 41. Ne5 {[%clk 0:00:21]}  a3 {[%clk 0:00:09]} 42. Nc6+ {[%clk 0:00:18]}  Ka4 {[%clk 0:00:09]} 43. Kc2 {[%clk 0:00:18]}  Re1 {[%clk 0:00:06]} 44. Bb6 {[%clk 0:00:14]}  Re4 {[%clk 0:00:05]} 45. Nd4 {[%clk 0:00:14]}  b3+ {[%clk 0:00:02]} 46. axb3+ {[%clk 0:00:12]}  Kb4 {[%clk 0:00:02]} 47. Nc6# {[%clk 0:00:13]} 1-0


[Site "https://www.chess.com"]

[Event "Titled Tuesday Blitz August 16 Early 2022"]
[White "Leschinsky, Gary"]
[Black "Popilski, Gil"]
[WhiteFideId "30951321"]
[BlackFideId "2809060"]
[WhiteElo "1809"]
[BlackElo "2537"]
[Result "1/2-1/2"]
[Round "06"]
[TimeControl "180+2"]
[Date "2022.08.18"]
[WhiteClock "0:00:00"]
[BlackClock "0:00:00"]

1. c4 {[%clk 0:00:00]}  e5 {[%clk 0:00:00]} 2. Nc3 {[%clk 0:00:00]}  Bb4 {[%clk 0:00:00]} 3. Qc2 {[%clk 0:00:00]}  Nf6 {[%clk 0:00:00]} 4. Nf3 {[%clk 0:00:00]}  Nc6 {[%clk 0:00:00]} 5. e3 {[%clk 0:00:00]}  O-O {[%clk 0:00:00]} 6. d3 {[%clk 0:00:00]}  d5 {[%clk 0:00:00]} 7. cxd5 {[%clk 0:00:00]}  Nxd5 {[%clk 0:00:00]} 8. Be2 {[%clk 0:00:00]}  Bf5 {[%clk 0:00:00]} 9. O-O {[%clk 0:00:00]}  Bg6 {[%clk 0:00:00]} 10. a3 {[%clk 0:00:00]}  Ba5 {[%clk 0:00:00]} 11. Bd2 {[%clk 0:00:00]}  Bb6 {[%clk 0:00:00]} 12. b4 {[%clk 0:00:00]}  Re8 {[%clk 0:00:00]} 13. Rfd1 {[%clk 0:00:00]}  a6 {[%clk 0:00:00]} 14. Rac1 {[%clk 0:00:00]}  h6 {[%clk 0:00:00]} 15. Na4 {[%clk 0:00:00]}  Ba7 {[%clk 0:00:00]} 16. Nc5 {[%clk 0:00:00]}  Bxc5 {[%clk 0:00:00]} 17. Qxc5 {[%clk 0:00:00]}  Bh5 {[%clk 0:00:00]} 18. a4 {[%clk 0:00:00]}  Qd6 {[%clk 0:00:00]} 19. b5 {[%clk 0:00:00]}  axb5 {[%clk 0:00:00]} 20. axb5 {[%clk 0:00:00]}  Na5 {[%clk 0:00:00]} 21. e4 {[%clk 0:00:00]}  Nb3 {[%clk 0:00:00]} 22. Qxd6 {[%clk 0:00:00]}  cxd6 {[%clk 0:00:00]} 23. exd5 {[%clk 0:00:00]}  Nxc1 {[%clk 0:00:00]} 24. Rxc1 {[%clk 0:00:00]}  Rec8 {[%clk 0:00:00]} 25. Rxc8+ {[%clk 0:00:00]}  Rxc8 {[%clk 0:00:00]} 26. Kf1 {[%clk 0:00:00]}  Rc2 {[%clk 0:00:00]} 27. Ke1 {[%clk 0:00:00]}  Rb2 {[%clk 0:00:00]} 28. Be3 {[%clk 0:00:00]}  Rxb5 {[%clk 0:00:00]} 29. Nd2 {[%clk 0:00:00]}  Bxe2 {[%clk 0:00:00]} 30. Kxe2 {[%clk 0:00:00]}  f5 {[%clk 0:00:00]} 31. d4 {[%clk 0:00:00]}  Rxd5 {[%clk 0:00:00]} 32. dxe5 {[%clk 0:00:00]}  dxe5 {[%clk 0:00:00]} 33. f4 {[%clk 0:00:00]}  g5 {[%clk 0:00:00]} 34. fxe5 {[%clk 0:00:00]}  f4 {[%clk 0:00:00]} 35. Bf2 {[%clk 0:00:00]}  Rxe5+ {[%clk 0:00:00]} 36. Kf3 {[%clk 0:00:00]}  b5 {[%clk 0:00:00]} 37. h4 {[%clk 0:00:00]}  Kf7 {[%clk 0:00:00]} 38. hxg5 {[%clk 0:00:00]}  hxg5 {[%clk 0:00:00]} 39. Bd4 {[%clk 0:00:00]}  Rd5 {[%clk 0:00:00]} 40. Ke4 {[%clk 0:00:00]}  Rd7 {[%clk 0:00:00]} 41. Nf3 {[%clk 0:00:00]}  Re7+ {[%clk 0:00:00]} 42. Kf5 {[%clk 0:00:00]}  Re2 {[%clk 0:00:00]} 43. Kxg5 {[%clk 0:00:00]}  Rxg2+ {[%clk 0:00:00]} 44. Kxf4 {[%clk 0:00:00]}  Re2 {[%clk 0:00:00]} 45. Ne5+ {[%clk 0:00:00]}  Ke6 {[%clk 0:00:00]} 46. Nd3 {[%clk 0:00:00]}  Kd5 {[%clk 0:00:00]} 47. Be3 {[%clk 0:00:00]}  Kc4 {[%clk 0:00:00]} 48. Ne5+ {[%clk 0:00:00]}  Kc3 {[%clk 0:00:00]} 49. Kf3 {[%clk 0:00:00]}  Re1 {[%clk 0:00:00]} 50. Ng4 {[%clk 0:00:00]}  b4 {[%clk 0:00:00]} 51. Nf2 {[%clk 0:00:00]}  b3 {[%clk 0:00:00]} 52. Bh6 {[%clk 0:00:00]}  b2 {[%clk 0:00:00]} 53. Bg7+ {[%clk 0:00:00]}  Kc2 {[%clk 0:00:00]} 54. Bxb2 {[%clk 0:00:00]}  Rf1 {[%clk 0:00:00]} 55. Bd4 {[%clk 0:00:00]}  Rxf2+ {[%clk 0:00:00]} 56. Bxf2 {[%clk 0:00:00]} 1/2-1/2


[Site "https://www.chess.com"]